bitfinex/quotes_ETHUSD_20251006
["timestamp","ask_amount","ask_price","bid_price","bid_amount"]
[1759734212453,0.5835,4566.0,4565.9,41.045]
[1759734212655,0.5835,4566.0,4565.9,35.435]
[1759734212656,2.77360074,4566.0,4565.9,35.435]
[1759734213225,2.77360074,4566.0,4565.9,37.91]
[1759734213455,2.77360074,4566.0,4565.9,19.375]
[1759734213656,2.19034059,4565.5,4565.0,1.1601334]
[1759734213855,1.07986264,4566.0,4565.2,2.4]
[1759734213856,0.4561,4565.4,4565.2,2.4]
[1759734214057,0.4561,4565.4,4565.3,40.0]
[1759734214058,2.19038857,4565.4,4565.3,40.0]
[1759734214228,2.19038857,4565.4,4565.3,16.975]
[1759734214433,2.19038857,4565.4,4565.3,19.375]
[1759734214633,0.6336,4567.0,4565.4,2.4]
[1759734214965,2.18989738,4566.5,4565.6,2.4]
[1759734215149,0.67508974,4566.4,4565.7,19.524]
[1759734215467,2.19003632,4566.2,4565.9,2.4]
[1759734215664,0.4561,4566.1,4566.0,2.475]
[1759734216361,2.64615278,4566.1,4566.0,2.475]
[1759734217162,2.64615278,4566.1,4565.5,2.4]
[1759734217368,0.4561,4566.0,4565.7,2.4]
[1759734217554,2.19013306,4566.0,4565.9,2.4]
[1759734217754,2.19013306,4566.0,4565.8,2.475]
[1759734218086,0.4561,4565.9,4565.7,2.4]
[1759734218233,2.64624871,4565.9,4565.8,2.475]
[1759734218859,2.64624871,4565.9,4565.5,12.4]
[1759734218860,0.93972565,4565.9,4565.5,12.4]
[1759734219044,0.93972565,4565.9,4565.4,1.1601334]
[1759734219045,2.19024651,4565.7,4565.6,2.475]
[1759734219258,0.4561,4565.7,4565.6,2.475]
[1759734219869,2.19034059,4565.5,4565.4,2.4]
[1759734220166,2.64644059,4565.5,4565.4,4.875]
[1759734220538,2.64644059,4565.5,4565.4,2.4]
[1759734220763,2.64644059,4565.5,4564.9,1.1601334]
[1759734220764,2.1905805,4565.0,4564.9,1.1601334]
[1759734221066,2.6466805,4565.0,4564.9,2.475]
[1759734222751,0.4561,4565.0,4564.5,1.1601334]
[1759734222954,0.4561,4565.0,4564.6,2.475]
[1759734222955,2.19072447,4564.7,4564.6,2.475]
[1759734223379,0.4561,4564.7,4564.6,6.0351334]
[1759734224166,0.5657,4564.7,4564.6,6.0351334]
[1759734224365,0.5657,4564.7,4564.6,3.6351334]
[1759734225261,0.5657,4564.7,4564.6,2.475]
[1759734225459,0.1096,4564.7,4564.3,2.4]
[1759734225658,0.1096,4564.7,4564.1,2.4]
[1759734225879,0.1096,4564.7,4564.2,2.475]
[1759734226083,0.1096,4564.7,4564.6,1.16646107]
[1759734226285,0.1096,4564.7,4564.6,6.04146107]
[1759734226782,0.1096,4564.7,4564.6,3.56646107]
[1759734226989,0.1096,4564.7,4564.6,6.04146107]
[1759734227768,0.1096,4564.7,4564.6,3.56646107]
[1759734227970,0.1096,4564.7,4564.6,6.04146107]
[1759734228376,0.002,4565.9,4564.6,4.21737138]
[1759734228555,0.002,4565.9,4565.3,1.16551052]
[1759734228886,0.002,4565.9,4565.5,2.4]
[1759734229057,2.19214973,4565.9,4565.6,2.475]
[1759734229256,0.002,4565.9,4565.6,2.475]
[1759734229693,2.19214901,4565.9,4565.6,2.475]
[1759734229893,0.94192542,4565.9,4565.6,2.475]
[1759734230097,0.4561,4565.8,4565.6,2.475]
[1759734230691,2.64630478,4565.8,4565.6,2.475]
[1759734230867,0.002,4565.9,4565.3,1.16551052]
[1759734230868,2.19038857,4565.4,4565.3,1.16551052]
[1759734231070,0.4561,4565.4,4564.9,1.16551052]
[1759734231279,0.002,4565.9,4564.0,2.19104988]
[1759734231280,0.4561,4565.3,4565.0,2.475]
[1759734231690,2.64654107,4565.3,4565.0,2.475]
[1759734231890,2.19028572,4565.7,4565.0,2.475]
[1759734232095,0.67532857,4565.6,4565.0,2.475]
[1759734232279,0.4561,4565.6,4565.0,2.475]
[1759734232591,0.4561,4565.6,4565.1,2.475]
[1759734232794,2.19044981,4565.3,4565.1,2.475]
[1759734233112,0.4561,4565.6,4565.2,2.475]
[1759734233290,2.19043655,4565.3,4565.2,2.475]
[1759734233661,2.19054448,4565.1,4564.7,1.16551052]
[1759734233862,2.19043655,4565.3,4564.8,2.475]
[1759734234065,0.002,4565.9,4565.3,30.0]
[1759734234259,0.2045894,4567.0,4566.0,2.4]
[1759734234489,0.4561,4568.2,4567.1,2.4]
[1759734234693,0.4561,4568.2,4567.3,2.4]
[1759734234862,0.4561,4568.2,4567.5,2.4]
[1759734235191,2.18933206,4567.7,4567.5,0.77534398]
[1759734235394,0.43784915,4567.7,4567.5,2.475]
[1759734235596,2.18933356,4567.6,4567.5,2.475]
[1759734235776,3.77191953,4568.6,4567.5,2.475]
[1759734235777,2.82253024,4568.5,4567.5,2.475]
[1759734235972,2.18933356,4567.6,4567.5,2.475]
[1759734236496,2.64543356,4567.6,4567.5,2.475]
[1759734236702,0.4561,4567.6,4567.2,0.77534398]
[1759734236904,0.4561,4567.5,4567.2,2.475]
[1759734237105,2.18971708,4566.8,4566.7,0.77534398]
[1759734237306,2.18971708,4566.8,4566.7,2.475]
[1759734237477,2.18971708,4566.8,4566.7,4.875]
[1759734238178,2.29931708,4566.8,4566.7,2.475]
[1759734238382,2.18981298,4566.6,4566.5,0.77534398]
[1759734238611,2.18986094,4566.5,4566.4,0.77534398]
[1759734238794,2.18986094,4566.5,4566.4,2.475]
[1759734238795,3.20447999,4566.5,4566.4,2.475]
[1759734239105,2.75556094,4566.5,4566.4,2.475]
[1759734239411,2.29946094,4566.5,4566.4,2.475]
[1759734239717,2.18995685,4566.3,4566.2,4.875]
[1759734240075,2.18995685,4566.3,4566.2,2.475]
[1759734240278,2.18991038,4566.4,4566.2,2.475]
[1759734240506,2.18995685,4566.3,4566.2,2.475]
[1759734240892,0.1096,4566.5,4566.2,2.475]
[1759734241090,0.1096,4566.3,4566.2,5.4400344]
[1759734241292,2.1894814,4567.3,4566.2,5.4400344]
[1759734241293,0.1096,4566.6,4566.3,2.4]
[1759734241599,0.1096,4566.6,4566.5,2.4]
[1759734241811,0.1096,4566.9,4566.7,2.4]
[1759734241990,0.4561,4568.3,4566.9,2.4]
[1759734242310,0.1096,4567.4,4567.1,2.4]
[1759734242492,0.1096,4567.4,4567.3,2.4]
[1759734242813,0.1096,4567.4,4567.3,32.4]
[1759734243107,2.18915014,4568.0,4567.4,30.0]
[1759734243408,0.1096,4567.7,4567.4,35.3271]
[1759734243909,0.1096,4567.7,4567.4,4.874]
[1759734243910,2.19138149,4567.5,4567.4,4.874]
[1759734245498,0.002,4567.5,4567.4,4.874]
[1759734245890,2.19138149,4567.5,4567.4,4.874]
[1759734247898,0.002,4567.5,4567.4,4.874]
[1759734248206,0.002,4567.5,4567.4,5.3271]
[1759734250134,0.002,4567.5,4567.4,35.3271]
[1759734251814,0.002,4567.5,4567.4,35.4367]
[1759734252592,0.002,4567.5,4567.4,33.0367]
[1759734253232,0.002,4567.5,4567.4,47.5367]
[1759734254516,0.002,4567.5,4567.4,45.0627]
[1759734254723,0.002,4567.5,4567.4,47.5367]
[1759734255320,0.002,4567.5,4567.4,49.70519181]
[1759734256113,0.002,4567.5,4567.4,52.10519181]
[1759734256448,0.002,4567.5,4567.4,21.756]
[1759734257220,2.19138149,4567.5,4567.4,19.374]
[1759734257426,2.19138149,4567.5,4567.4,25.732]
[1759734257662,2.64028149,4567.5,4567.4,4.874]
[1759734257929,2.19138149,4567.5,4567.4,4.874]
[1759734258523,2.64028149,4567.5,4567.2,0.77408149]
[1759734258697,2.18957325,4567.1,4566.9,0.77408149]
[1759734258912,2.18966914,4566.9,4566.6,0.77408149]
[1759734259227,0.4489,4566.8,4566.1,0.77408149]
[1759734259398,0.4489,4566.7,4566.2,2.474]
[1759734259592,2.18995685,4566.3,4566.2,2.474]
[1759734259896,2.18995685,4566.3,4565.8,14.501]
[1759734259897,2.19007459,4566.1,4565.8,14.501]
[1759734260105,2.19014871,4565.9,4565.8,0.001]
[1759734260307,2.19014871,4565.9,4565.8,2.475]
[1759734261225,2.63904871,4565.9,4565.8,0.001]
[1759734261526,3.12196104,4565.9,4565.8,0.001]
[1759734262808,3.75556104,4565.9,4565.8,0.001]
[1759734265636,3.30666104,4565.9,4565.8,0.001]
[1759734265797,6.23056104,4565.9,4565.8,0.001]
[1759734266430,3.30666104,4565.9,4565.8,0.001]
[1759734266596,3.75556104,4565.9,4565.8,0.001]
[1759734268852,6.23056104,4565.9,4565.8,0.001]
[1759734269224,6.34016104,4565.9,4565.8,0.001]
[1759734269421,2.82413251,4565.1,4565.0,1e-08]
[1759734269655,7.80873251,4565.1,4565.0,1e-08]
[1759734269838,0.6336,4564.3,4563.5,0.001]
[1759734270042,2.30085251,4563.6,4563.5,0.001]
[1759734270456,0.1096,4563.6,4563.5,0.001]
[1759734270631,2.30085251,4563.6,4563.5,0.001]
[1759734270827,2.77853776,4563.6,4563.5,0.001]
[1759734271128,0.1096,4563.6,4563.5,0.4541]
[1759734271328,0.1096,4563.6,4563.5,2.96004999]
[1759734271639,0.1096,4563.6,4563.5,32.96004999]
[1759734271835,0.1096,4563.6,4563.5,35.43704999]
[1759734272041,0.1096,4563.6,4563.5,32.9311]
[1759734272240,0.1096,4563.6,4563.5,47.4311]
[1759734272439,0.1096,4563.6,4563.5,49.62240053]
[1759734273134,0.1096,4563.6,4563.5,47.4311]
[1759734273328,0.6336,4565.0,4563.5,47.4311]
[1759734273329,2.19070572,4564.8,4563.5,49.62240053]
[1759734273534,0.1096,4564.0,4563.6,30.4522]
[1759734273771,0.1096,4564.0,4563.7,2.64700095]
[1759734273962,0.1096,4564.0,4563.8,14.5]
[1759734274172,0.1096,4564.0,4563.8,14.9558]
[1759734274362,0.1096,4564.0,4563.9,0.4558]
[1759734276267,0.1096,4564.0,4563.9,2.476]
[1759734276937,0.1096,4564.0,4563.9,2.9318]
[1759734277963,0.1096,4564.0,4563.9,17.4318]
[1759734278534,0.1096,4564.0,4563.9,19.62290848]
[1759734279066,0.1096,4564.0,4563.9,49.62290848]
[1759734279649,0.1096,4564.0,4563.9,51.79140029]
[1759734280464,2.5525,4565.6,4564.1,2.19098364]
[1759734280653,2.19059826,4565.0,4564.2,2.9318]
[1759734280855,2.19059826,4565.0,4564.3,0.4558]
[1759734281364,0.1096,4564.4,4564.3,0.4558]
[1759734281569,0.1096,4564.4,4564.3,2.64671646]
[1759734281770,2.19034654,4565.5,4564.3,34.15898811]
[1759734281974,0.1096,4564.8,4564.4,30.4558]
[1759734282181,0.1096,4564.8,4564.5,32.9318]
[1759734282365,2.19017134,4565.9,4564.7,2.4]
[1759734282548,2.19025149,4565.7,4564.9,2.4]
[1759734282879,0.4475,4566.6,4564.9,2.4]
[1759734282880,0.4475,4566.3,4565.0,24.9558]
[1759734283055,2.19005278,4566.1,4565.1,2.476]
[1759734283382,2.19048453,4565.2,4564.5,2.4]
[1759734283684,2.1905805,4565.0,4564.5,2.476]
[1759734283979,2.19099566,4564.2,4564.0,2.476]
[1759734284146,2.19101246,4564.1,4564.0,2.476]
[1759734284647,0.4475,4564.6,4563.8,0.001]
[1759734284957,2.19034059,4565.5,4563.8,2.477]
[1759734284958,0.4475,4564.1,4563.8,2.477]
[1759734285162,2.19101328,4564.1,4563.8,2.477]
[1759734285370,2.19092254,4564.3,4563.9,0.4558]
[1759734285556,2.19096535,4564.2,4563.9,0.4558]
[1759734285877,2.19096535,4564.2,4563.8,2.477]
[1759734286052,0.21909225,4564.3,4563.8,2.477]
[1759734286252,2.19102545,4564.1,4563.8,2.477]
[1759734286552,2.19101551,4564.1,4563.8,2.477]
[1759734286761,2.41003299,4564.3,4563.8,2.477]
[1759734287078,0.6336,4564.9,4563.8,2.9328]
[1759734287270,2.19096509,4564.2,4563.8,2.9328]
[1759734288153,2.19092439,4564.3,4563.8,2.9328]
[1759734288581,2.19076252,4564.7,4563.8,2.9328]
[1759734288767,0.28243625,4564.6,4563.8,2.9328]
[1759734288968,2.19091853,4564.3,4563.8,2.9328]
[1759734289276,0.28243625,4564.6,4563.8,3.70688149]
[1759734289447,2.1908709,4564.4,4563.8,3.70688149]
[1759734289850,2.18988254,4566.5,4563.8,3.25108149]
[1759734290081,2.19063192,4564.9,4564.0,5.36512715]
[1759734290383,2.19063192,4564.9,4564.2,3.17408149]
[1759734290555,0.4475,4565.4,4564.4,3.17408149]
[1759734290751,2.19053511,4565.1,4564.6,2.4]
[1759734290973,2.19058069,4565.0,4564.7,0.77408149]
[1759734291179,2.19059822,4565.0,4564.7,0.77408149]
[1759734291377,0.4475,4565.6,4564.7,0.77408149]
[1759734291875,2.19067648,4564.8,4564.7,0.77408149]
[1759734292271,2.19067648,4564.8,4564.6,16.9]
[1759734292480,0.1096,4564.7,4564.6,16.9]
[1759734294566,0.1096,4564.7,4564.6,17.3558]
[1759734296360,0.1096,4564.9,4564.6,16.9]
[1759734296571,0.1096,4564.9,4564.8,2.4]
[1759734297896,0.1096,4564.9,4564.8,4.875]
[1759734298097,0.4475,4564.9,4564.7,0.77801904]
[1759734298299,0.002,4565.0,4564.7,0.77801904]
[1759734298300,3.27177648,4564.8,4564.7,0.77801904]
[1759734298600,2.19101246,4564.1,4564.0,0.77801904]
[1759734299983,2.19091852,4564.3,4564.0,0.77801904]
[1759734300297,1.0811,4564.7,4564.0,0.77801904]
[1759734300505,2.19095997,4564.3,4564.1,0.77801904]
[1759734300747,2.19095997,4564.3,4564.0,0.77801904]
[1759734300911,0.002,4565.0,4564.2,0.4558]
[1759734301074,2.1908096,4564.6,4564.3,0.77801904]
[1759734301274,0.31306,4565.0,4564.3,0.77801904]
[1759734301777,2.19086846,4564.4,4564.3,0.77801904]
[1759734302908,2.66576846,4564.4,4564.3,0.77801904]
[1759734303392,2.19086846,4564.4,4564.3,0.77801904]
[1759734303589,3.10393468,4564.4,4564.3,0.77801904]
[1759734303791,3.10393468,4564.4,4564.1,0.77801904]
[1759734304005,2.19106047,4564.0,4563.9,0.77801904]
[1759734304403,2.19125251,4563.6,4563.5,0.001]
[1759734304614,2.82485251,4563.6,4563.5,0.001]
[1759734304816,4.04885341,4563.6,4563.5,0.001]
[1759734306699,4.04885341,4563.6,4562.6,0.001]
[1759734306700,0.6336,4562.7,4562.6,0.001]
[1759734306899,5.30128474,4562.7,4562.6,0.001]
[1759734307091,5.77618474,4562.7,4562.6,0.001]
[1759734308016,5.88578474,4562.7,4562.6,0.001]
[1759734308341,6.5296768,4562.7,4562.6,0.001]
[1759734312028,3.4691768,4562.7,4562.6,0.001]
[1759734312197,2.30128474,4562.7,4562.6,0.001]
[1759734312533,4.77728474,4562.7,4562.6,0.001]
[1759734313523,4.76276448,4562.7,4562.6,0.001]
[1759734314547,2.5856,4562.7,4562.6,0.001]
[1759734314831,0.1096,4562.7,4562.6,0.4438]
[1759734316214,2.30128474,4562.7,4562.6,0.001]
[1759734317331,5.47417251,4562.7,4562.6,0.001]
[1759734317630,6.58267251,4562.7,4562.6,0.001]
[1759734319648,6.10777251,4562.7,4562.6,0.001]
[1759734319936,5.41088474,4562.7,4562.6,0.001]
[1759734320133,2.30128474,4562.7,4562.6,0.001]
[1759734320330,2.5856,4562.7,4562.6,0.4438]
[1759734320534,4.77728474,4562.7,4562.6,0.4438]
[1759734320730,4.77728474,4562.7,4562.6,0.001]
[1759734320938,0.1096,4562.7,4562.6,30.4438]
[1759734321102,0.1096,4562.7,4562.6,37.20402459]
[1759734321307,0.1096,4562.7,4562.6,18.94802459]
[1759734321932,0.1096,4562.7,4562.6,37.20402459]
[1759734322331,0.1096,4562.7,4562.6,2.8438]
[1759734322514,0.1096,4562.7,4562.6,2.401]
[1759734323029,0.1096,4562.7,4562.6,2.8438]
[1759734324250,0.1096,4562.7,4562.6,35.03553278]
[1759734324404,0.1096,4562.7,4562.6,32.8438]
[1759734324611,0.1096,4562.7,4562.6,20.95429181]
[1759734325204,0.1096,4562.7,4562.6,39.68002459]
[1759734325746,0.1096,4562.7,4562.6,33.37902459]
[1759734326046,0.1096,4562.7,4562.6,2.401]
[1759734326210,0.1096,4562.7,4562.6,4.877]
[1759734326410,0.1096,4562.7,4562.6,5.3198]
[1759734327661,0.1096,4562.7,4562.6,0.001]
[1759734328230,0.1096,4562.7,4562.6,0.4438]
[1759734328638,2.25772396,4562.7,4562.6,0.001]
[1759734329173,3.27021157,4562.7,4562.6,0.001]
[1759734329670,3.74511157,4562.7,4562.6,0.001]
[1759734330047,6.22111157,4562.7,4562.6,0.001]
[1759734331948,6.22311157,4562.7,4562.6,0.001]
[1759734332552,3.74711157,4562.7,4562.6,0.001]
[1759734332873,5.30328474,4562.7,4562.6,0.001]
[1759734334456,5.30428474,4562.7,4562.6,0.001]
[1759734334662,2.82728474,4562.7,4562.6,0.001]
[1759734334853,5.30428474,4562.7,4562.6,0.001]
[1759734336153,2.82728474,4562.7,4562.6,0.001]
[1759734336353,5.80617441,4562.7,4562.6,0.001]
[1759734338074,3.32917441,4562.7,4562.6,0.001]
[1759734338368,5.80617441,4562.7,4562.6,0.001]
[1759734338753,3.32917441,4562.7,4562.6,0.001]
[1759734338949,5.80617441,4562.7,4562.6,0.001]
[1759734339154,5.91577441,4562.7,4562.6,0.001]
[1759734340467,6.36627441,4562.7,4562.6,0.001]
[1759734342477,5.91577441,4562.7,4562.6,0.001]
[1759734342681,6.36627441,4562.7,4562.6,0.001]
[1759734343978,3.43877441,4562.7,4562.6,0.001]
[1759734344180,6.36627441,4562.7,4562.6,0.001]
[1759734344887,3.88927441,4562.7,4562.6,0.001]
[1759734345087,6.36627441,4562.7,4562.6,0.001]
[1759734348458,3.88927441,4562.7,4562.6,0.001]
[1759734348657,5.91577441,4562.7,4562.6,0.001]
[1759734350476,6.36627441,4562.7,4562.6,0.001]
[1759734354094,5.91577441,4562.7,4562.6,0.001]
[1759734354298,6.36627441,4562.7,4562.6,0.001]
[1759734355490,5.91577441,4562.7,4562.6,0.001]
[1759734355794,6.36627441,4562.7,4562.6,0.001]
[1759734356203,3.43877441,4562.7,4562.6,0.001]
[1759734356370,5.91577441,4562.7,4562.6,0.001]
[1759734357204,3.43877441,4562.7,4562.6,0.001]
[1759734357406,3.43877441,4562.7,4562.6,0.4339]
[1759734357407,5.91577441,4562.7,4562.6,0.4339]
[1759734357605,5.41388474,4562.7,4562.6,0.4339]
[1759734358411,5.41388474,4562.7,4562.6,0.001]
[1759734360379,5.41388474,4562.7,4562.6,0.4339]
[1759734360576,0.002,4562.7,4562.6,0.4339]
[1759734360775,0.1116,4562.7,4562.6,1.33493539]
[1759734361006,0.1116,4562.7,4562.6,0.55534867]
[1759734361177,0.1116,4562.7,4562.6,15.05534867]
[1759734361896,0.1116,4562.7,4562.6,14.9339]
[1759734364114,0.002,4562.7,4562.6,52.00263278]
[1759734364301,0.002,4562.7,4562.6,52.44282526]
[1759734364611,0.002,4562.7,4562.6,53.01143099]
[1759734366015,0.002,4562.7,4562.6,30.04449253]
[1759734366217,2.19368474,4562.7,4562.6,17.3339]
[1759734366389,0.1116,4562.7,4562.6,18.5010785]
[1759734367010,0.1116,4562.7,4562.6,17.3339]
[1759734367212,0.1116,4562.7,4562.6,18.50087806]
[1759734369005,0.1116,4562.7,4562.6,21.69412459]
[1759734369006,0.002,4562.7,4562.6,21.69412459]
[1759734369324,0.002,4562.7,4562.6,22.00873163]
[1759734369617,0.002,4562.7,4562.6,52.00873163]
[1759734370331,0.002,4562.7,4562.6,52.33932411]
[1759734370689,0.002,4562.7,4562.6,52.44892411]
[1759734372231,0.002,4562.7,4562.6,54.59433163]
[1759734373655,0.002,4562.7,4562.6,43.28459885]
[1759734373858,0.002,4562.7,4562.6,36.59999181]
[1759734374226,0.002,4562.7,4562.6,23.4299]
[1759734374444,0.002,4562.7,4562.6,25.9059]
[1759734374749,0.1116,4562.7,4562.6,10.92395994]
[1759734375055,0.1116,4562.7,4562.6,3.17847482]
[1759734375545,0.1116,4562.7,4562.6,0.77847482]
[1759734375735,0.1116,4562.7,4562.6,0.001]
[1759734376122,2.30328474,4562.7,4562.6,0.001]
[1759734377240,0.1116,4562.7,4562.6,0.001]
[1759734377952,2.30328474,4562.7,4562.6,0.001]
[1759734379161,3.81686843,4562.7,4562.6,0.001]
[1759734381023,3.70726843,4562.7,4562.6,0.001]
[1759734385224,0.6336,4562.3,4562.1,1e-08]
[1759734385423,5.30152494,4562.2,4562.1,1e-08]
[1759734385650,6.48136266,4562.2,4562.1,1e-08]
[1759734387653,2.82562104,4562.0,4561.9,1e-08]
[1759734388356,3.25612104,4562.0,4561.9,1e-08]
[1759734389924,5.73312104,4562.0,4561.9,1e-08]
[1759734391153,5.84272104,4562.0,4561.9,1e-08]
[1759734391319,6.72111941,4562.0,4561.9,1e-08]
[1759734391955,2.82586131,4561.5,4561.4,1e-08]
[1759734392125,5.41246131,4561.5,4561.4,1e-08]
[1759734392656,2.93546131,4561.5,4561.4,1e-08]
[1759734392858,5.41246131,4561.5,4561.4,1e-08]
[1759734393029,5.9269444,4561.5,4561.4,1e-08]
[1759734393456,3.4499444,4561.5,4561.4,1e-08]
[1759734393655,5.9269444,4561.5,4561.4,1e-08]
[1759734395034,3.4499444,4561.5,4561.4,1e-08]
[1759734395235,5.9269444,4561.5,4561.4,1e-08]
[1759734396754,3.4499444,4561.5,4561.4,1e-08]
[1759734397058,6.3675444,4561.5,4561.4,1e-08]
[1759734400533,5.9269444,4561.5,4561.4,1e-08]
[1759734402578,6.3675444,4561.5,4561.4,1e-08]
[1759734404779,3.4499444,4561.5,4561.4,1e-08]
[1759734405083,5.9269444,4561.5,4561.4,1e-08]
[1759734405383,3.4499444,4561.5,4561.4,1e-08]
[1759734405583,5.9269444,4561.5,4561.4,1e-08]
[1759734407448,2.19191295,4562.3,4561.4,1e-08]
[1759734407449,0.002,4562.7,4561.4,0.47480001]
[1759734407694,2.354,4562.6,4561.4,0.78940705]
[1759734407974,2.19216228,4561.8,4561.5,0.4748]
[1759734408178,2.19217631,4561.7,4561.5,0.4748]
[1759734408484,2.1921652,4561.7,4561.6,0.4748]
[1759734409561,4.6691652,4561.7,4561.6,0.4748]
[1759734409964,2.19226131,4561.5,4561.4,0.77747483]
[1759734410189,5.30286131,4561.5,4561.4,1e-08]
[1759734410486,6.05236396,4561.5,4561.4,1e-08]
[1759734411452,6.05236396,4561.5,4561.4,0.47480001]
[1759734411656,5.30286131,4561.5,4561.4,1e-08]
[1759734415286,5.30286131,4561.5,4561.4,0.47480001]
[1759734415792,0.6336,4561.5,4561.4,0.47480001]
[1759734415990,2.19220702,4561.7,4561.4,0.47480001]
[1759734416193,4.66920702,4561.7,4561.5,0.78103807]
[1759734416368,2.19221325,4561.6,4561.5,0.78103807]
[1759734417485,4.77881325,4561.6,4561.5,1.25583807]
[1759734418230,4.77881325,4561.6,4561.5,0.4748]
[1759734420817,2.5866,4561.6,4561.5,0.4748]
[1759734420986,4.77881325,4561.6,4561.5,0.4748]
[1759734421873,0.1096,4561.6,4561.5,0.4748]
[1759734422077,0.1096,4561.6,4561.5,1.25583807]
[1759734422510,2.30181325,4561.6,4561.5,1.25583807]
[1759734422713,0.1096,4561.6,4561.5,1.25583807]
[1759734423092,0.1096,4561.6,4561.5,36.50974661]
[1759734423285,0.002,4561.7,4561.6,4.59221325]
[1759734423490,0.002,4561.7,4561.6,35.68611277]
[1759734423491,0.1116,4561.7,4561.6,35.68611277]
[1759734423673,0.002,4561.7,4561.6,35.68611277]
[1759734424101,0.002,4561.7,4561.6,50.18611277]
[1759734424303,0.002,4561.7,4561.6,52.35460458]
[1759734425613,0.002,4561.7,4561.6,52.46420458]
[1759734427990,0.002,4561.7,4561.6,54.94020458]
[1759734429691,0.002,4562.2,4561.9,2.19204711]
[1759734429897,0.002,4562.2,4562.1,2.4]
[1759734430116,0.002,4562.2,4562.1,39.99126432]
[1759734430331,0.002,4562.2,4562.1,54.93996432]
[1759734430894,0.002,4563.2,4562.1,52.63839133]
[1759734431096,0.002,4563.7,4563.6,2.19125251]
[1759734431395,0.002,4563.7,4563.6,37.49145955]
[1759734431601,0.002,4563.7,4563.6,52.44015955]
[1759734434020,0.002,4563.7,4563.6,53.60455723]
[1759734434193,0.002,4563.7,4563.6,53.60218562]
[1759734434394,0.002,4563.7,4563.6,54.73026388]
[1759734435330,0.002,4563.7,4563.6,53.56823781]
[1759734435839,0.002,4563.7,4563.6,53.89883029]
[1759734436894,0.002,4564.2,4564.1,2.19101246]
[1759734437096,0.002,4564.2,4564.1,37.8427221]
[1759734437315,0.002,4564.2,4564.1,40.43800379]
[1759734437709,0.002,4564.2,4564.1,54.93800379]
[1759734438506,0.1096,4565.6,4564.1,54.93800379]
[1759734438507,0.002,4566.0,4564.2,2.4]
[1759734438739,0.1096,4565.8,4565.3,2.19043442]
[1759734439021,0.1096,4565.8,4565.4,34.89690388]
[1759734439232,0.1096,4565.8,4565.4,53.73388038]
[1759734439595,0.1096,4565.8,4565.4,51.54349181]
[1759734440338,0.1096,4565.8,4565.4,49.375]
[1759734441401,2.64954059,4565.5,4565.4,20.78]
[1759734441613,2.64954059,4565.5,4565.4,37.125]
[1759734441614,2.75914059,4565.5,4565.4,37.125]
[1759734441929,0.5688,4565.5,4565.4,38.713]
[1759734442130,2.75914059,4565.5,4565.4,38.713]
[1759734442430,2.75914059,4565.5,4565.4,36.24]
[1759734442631,2.75914059,4565.5,4565.4,36.268]
[1759734442836,2.75914059,4565.5,4565.4,35.844]
[1759734443138,3.14447547,4565.5,4565.4,14.5]
[1759734443304,3.14447547,4565.5,4564.2,2.19095975]
[1759734443305,2.19050398,4565.2,4564.2,2.19095975]
[1759734443506,2.19050398,4565.2,4564.3,44.66590907]
[1759734443738,0.4572,4565.4,4564.5,2.4]
[1759734444033,0.002,4565.5,4564.7,2.4]
[1759734444235,0.002,4565.5,4564.9,2.4]
[1759734444407,0.002,4565.5,4565.1,2.19049054]
[1759734444602,0.002,4565.5,4565.3,2.4]
[1759734444804,0.002,4565.5,4565.4,44.875]
[1759734445004,0.002,4565.5,4565.4,34.875]
[1759734445199,0.002,4565.5,4565.4,4.875]
[1759734445641,0.002,4565.5,4565.4,34.875]
[1759734448634,0.002,4565.5,4565.4,27.859]
[1759734448858,0.002,4565.5,4565.4,34.875]
[1759734449244,0.4592,4565.5,4565.4,4.731]
[1759734449444,2.64954059,4565.5,4565.4,4.874]
[1759734450338,2.64954059,4565.5,4565.4,2.474]
[1759734450751,2.64954059,4565.5,4565.0,0.001]
[1759734450973,0.4592,4565.5,4565.2,2.4]
[1759734451260,2.64954694,4565.5,4565.3,2.474]
[1759734451442,0.4592,4565.5,4565.4,2.474]
[1759734451761,2.64954268,4565.5,4565.0,2.401]
[1759734452059,2.64954268,4565.5,4565.2,2.4]
[1759734452236,2.64954268,4565.5,4565.3,2.474]
[1759734452761,2.64954268,4565.5,4565.0,0.001]
[1759734452957,2.19234268,4565.5,4565.2,2.4]
[1759734453139,0.1116,4565.5,4565.3,2.474]
[1759734453341,2.30194121,4565.5,4565.3,2.474]
[1759734454059,0.1116,4565.5,4565.4,2.474]
[1759734454253,2.30194059,4565.5,4565.4,2.474]
[1759734454452,2.75944059,4565.5,4565.4,2.474]
[1759734454957,2.75944059,4565.5,4565.0,0.001]
[1759734454958,2.19039105,4565.4,4565.0,0.001]
[1759734455152,2.19039105,4565.4,4565.2,2.4]
[1759734455352,2.19039105,4565.4,4565.3,2.474]
[1759734456059,2.19044776,4565.3,4565.0,0.001]
[1759734456363,2.19053251,4565.1,4565.0,0.001]
[1759734456659,2.6480012,4565.2,4565.0,2.475]
[1759734456853,0.4575,4565.2,4565.0,2.475]
[1759734457737,2.19053251,4565.1,4565.0,0.001]
[1759734457944,0.4575,4565.2,4565.0,2.475]
[1759734458489,0.5691,4565.5,4565.0,2.475]
[1759734458831,0.1116,4565.5,4565.0,2.475]
[1759734459036,0.1116,4565.5,4565.0,4.875]
[1759734459238,0.1116,4565.5,4565.1,0.02190532]
[1759734459433,0.1116,4565.5,4565.2,2.474]